[Event "Titled Tuesday Blitz April 11 Late 2023"]
[White "Karthikeyan, Murali"]
[Black "Licznerski, Lukasz"]
[WhiteFideId "5074452"]
[BlackFideId "1179250"]
[WhiteElo "2523"]
[BlackElo "2450"]
[Result "1-0"]
[Round "07"]
[TimeControl "180+2"]
[Date "2023.04.11"]
[WhiteClock "0:00:07"]
[BlackClock "0:00:01"]

1. Nf3 {[%clk 0:03:00]}  Nf6 {[%clk 0:02:29]} 2. g3 {[%clk 0:02:57]}  g6 {[%clk 0:02:28]} 3. Bg2 {[%clk 0:02:49]}  Bg7 {[%clk 0:02:29]} 4. O-O {[%clk 0:02:50]}  O-O {[%clk 0:02:30]} 5. d4 {[%clk 0:02:51]}  d5 {[%clk 0:02:30]} 6. c4 {[%clk 0:02:52]}  dxc4 {[%clk 0:02:31]} 7. Na3 {[%clk 0:02:52]}  c3 {[%clk 0:02:32]} 8. bxc3 {[%clk 0:02:53]}  c5 {[%clk 0:02:32]} 9. Re1 {[%clk 0:02:54]}  Nc6 {[%clk 0:02:33]} 10. e4 {[%clk 0:02:54]}  cxd4 {[%clk 0:02:27]} 11. cxd4 {[%clk 0:02:55]}  Nd7 {[%clk 0:02:10]} 12. Bb2 {[%clk 0:02:52]}  Nb6 {[%clk 0:02:10]} 13. h3 {[%clk 0:02:51]}  Bd7 {[%clk 0:01:49]} 14. Rb1 {[%clk 0:02:45]}  Na5 {[%clk 0:01:44]} 15. Ba1 {[%clk 0:02:30]}  Ba4 {[%clk 0:01:36]} 16. Qe2 {[%clk 0:02:26]}  Rc8 {[%clk 0:01:35]} 17. h4 {[%clk 0:01:58]}  Qd6 {[%clk 0:01:06]} 18. Nb5 {[%clk 0:01:58]}  Qd7 {[%clk 0:01:07]} 19. Nxa7 {[%clk 0:01:57]}  Rc2 {[%clk 0:01:07]} 20. Qd3 {[%clk 0:01:31]}  Nbc4 {[%clk 0:00:59]} 21. d5 {[%clk 0:01:16]}  Bxa1 {[%clk 0:00:57]} 22. Rxa1 {[%clk 0:01:17]}  b5 {[%clk 0:00:51]} 23. Qd4 {[%clk 0:01:08]}  Ra8 {[%clk 0:00:41]} 24. Nc6 {[%clk 0:01:07]}  Nxc6 {[%clk 0:00:41]} 25. dxc6 {[%clk 0:01:08]}  Qxc6 {[%clk 0:00:42]} 26. e5 {[%clk 0:01:06]}  Qc7 {[%clk 0:00:38]} 27. Qf4 {[%clk 0:01:00]}  Rf8 {[%clk 0:00:32]} 28. Qh6 {[%clk 0:00:57]}  Qc5 {[%clk 0:00:26]} 29. Rf1 {[%clk 0:00:22]}  f6 {[%clk 0:00:26]} 30. exf6 {[%clk 0:00:23]}  exf6 {[%clk 0:00:27]} 31. Rad1 {[%clk 0:00:22]}  b4 {[%clk 0:00:21]} 32. Rd4 {[%clk 0:00:19]}  Ne5 {[%clk 0:00:20]} 33. Rf4 {[%clk 0:00:17]}  Nf7 {[%clk 0:00:19]} 34. Qxf8+ {[%clk 0:00:09]}  Kxf8 {[%clk 0:00:18]} 35. Rxf6 {[%clk 0:00:10]}  Kg7 {[%clk 0:00:18]} 36. Rf4 {[%clk 0:00:11]}  Bb5 {[%clk 0:00:17]} 37. Nd4 {[%clk 0:00:09]}  Kg8 {[%clk 0:00:07]} 38. Nxc2 {[%clk 0:00:08]}  Bxf1 {[%clk 0:00:06]} 39. Bxf1 {[%clk 0:00:09]}  Qxc2 {[%clk 0:00:05]} 40. Bc4 {[%clk 0:00:09]}  Kh8 {[%clk 0:00:02]} 41. Bxf7 {[%clk 0:00:09]}  Kg7 {[%clk 0:00:02]} 42. Bb3 {[%clk 0:00:09]}  Qc1+ {[%clk 0:00:02]} 43. Kg2 {[%clk 0:00:08]}  h6 {[%clk 0:00:03]} 44. Rxb4 {[%clk 0:00:07]}  Qc6+ {[%clk 0:00:02]} 45. Kh2 {[%clk 0:00:08]}  Qc5 {[%clk 0:00:01]} 46. Rb7+ {[%clk 0:00:08]}  Kf6 {[%clk 0:00:01]} 47. Rf7+ {[%clk 0:00:09]}  Ke5 {[%clk 0:00:02]} 48. Rf4 {[%clk 0:00:07]}  g5 {[%clk 0:00:02]} 49. hxg5 {[%clk 0:00:08]}  hxg5 {[%clk 0:00:02]} 50. Rf3 {[%clk 0:00:08]}  Qc6 {[%clk 0:00:02]} 51. Re3+ {[%clk 0:00:08]}  Kd4 {[%clk 0:00:02]} 52. Kg1 {[%clk 0:00:09]}  Qc1+ {[%clk 0:00:02]} 53. Kg2 {[%clk 0:00:09]}  Qc6+ {[%clk 0:00:03]} 54. Kh2 {[%clk 0:00:10]}  Qf6 {[%clk 0:00:03]} 55. Re2 {[%clk 0:00:10]}  Qf3 {[%clk 0:00:03]} 56. Rc2 {[%clk 0:00:08]}  Qh5+ {[%clk 0:00:02]} 57. Kg1 {[%clk 0:00:09]}  g4 {[%clk 0:00:02]} 58. Kg2 {[%clk 0:00:09]}  Qf5 {[%clk 0:00:01]} 59. Rc4+ {[%clk 0:00:08]}  Kd5 {[%clk 0:00:01]} 60. Rf4+ {[%clk 0:00:07]} 1-0


[Site "https://www.chess.com"]

[Event "Titled Tuesday Blitz April 11 Late 2023"]
[White "Filgueira, Hernan"]
[Black "Makarian, Rudik"]
[WhiteFideId "101770"]
[BlackFideId "44105681"]
[WhiteElo "2363"]
[BlackElo "2430"]
[Result "0-1"]
[Round "07"]
[TimeControl "180+2"]
[Date "2023.04.11"]
[WhiteClock "0:00:03"]
[BlackClock "0:01:22"]

1. c4 {[%clk 0:02:59]}  Nf6 {[%clk 0:03:00]} 2. Nc3 {[%clk 0:02:58]}  g6 {[%clk 0:03:01]} 3. g3 {[%clk 0:02:58]}  d6 {[%clk 0:03:01]} 4. Bg2 {[%clk 0:02:58]}  Bg7 {[%clk 0:03:02]} 5. Nf3 {[%clk 0:02:57]}  O-O {[%clk 0:03:03]} 6. O-O {[%clk 0:02:56]}  c6 {[%clk 0:03:04]} 7. d4 {[%clk 0:02:55]}  Bf5 {[%clk 0:03:05]} 8. Ne1 {[%clk 0:02:52]}  e5 {[%clk 0:03:03]} 9. d5 {[%clk 0:02:51]}  cxd5 {[%clk 0:03:01]} 10. cxd5 {[%clk 0:02:51]}  Na6 {[%clk 0:03:00]} 11. e4 {[%clk 0:02:50]}  Bd7 {[%clk 0:02:59]} 12. Nd3 {[%clk 0:02:47]}  h5 {[%clk 0:02:56]} 13. h4 {[%clk 0:02:42]}  Ng4 {[%clk 0:02:55]} 14. Qe2 {[%clk 0:02:39]}  b5 {[%clk 0:02:55]} 15. b4 {[%clk 0:02:13]}  Rc8 {[%clk 0:02:54]} 16. Bd2 {[%clk 0:02:11]}  Rc4 {[%clk 0:02:53]} 17. a3 {[%clk 0:02:07]}  Qc7 {[%clk 0:02:52]} 18. Rac1 {[%clk 0:02:06]}  Rc8 {[%clk 0:02:52]} 19. Nb2 {[%clk 0:01:53]}  Qb6 {[%clk 0:02:46]} 20. Nxc4 {[%clk 0:01:52]}  bxc4 {[%clk 0:02:47]} 21. Kh1 {[%clk 0:01:44]}  Nc7 {[%clk 0:02:44]} 22. f3 {[%clk 0:01:43]}  Nf6 {[%clk 0:02:43]} 23. Be3 {[%clk 0:01:40]}  Qb7 {[%clk 0:02:42]} 24. Qf2 {[%clk 0:01:21]}  Nb5 {[%clk 0:02:43]} 25. Nxb5 {[%clk 0:01:17]}  Bxb5 {[%clk 0:02:43]} 26. Rc3 {[%clk 0:01:17]}  a6 {[%clk 0:02:42]} 27. Rfc1 {[%clk 0:01:16]}  Nxd5 {[%clk 0:02:32]} 28. exd5 {[%clk 0:01:13]}  Qxd5 {[%clk 0:02:33]} 29. R3c2 {[%clk 0:01:06]}  Qe6 {[%clk 0:02:31]} 30. f4 {[%clk 0:00:56]}  d5 {[%clk 0:02:30]} 31. fxe5 {[%clk 0:00:55]}  Qxe5 {[%clk 0:02:30]} 32. Bf4 {[%clk 0:00:49]}  Qf5 {[%clk 0:02:30]} 33. Kh2 {[%clk 0:00:46]}  Rd8 {[%clk 0:02:19]} 34. Bh3 {[%clk 0:00:30]}  Qd3 {[%clk 0:02:13]} 35. Rd2 {[%clk 0:00:20]}  Qxa3 {[%clk 0:02:11]} 36. Bg5 {[%clk 0:00:19]}  f6 {[%clk 0:01:36]} 37. Ra2 {[%clk 0:00:19]}  Qxb4 {[%clk 0:01:34]} 38. Bxf6 {[%clk 0:00:17]}  Rf8 {[%clk 0:01:34]} 39. Rb2 {[%clk 0:00:07]}  Qd6 {[%clk 0:01:31]} 40. Bxg7 {[%clk 0:00:05]}  Rxf2+ {[%clk 0:01:30]} 41. Rxf2 {[%clk 0:00:06]}  Kxg7 {[%clk 0:01:30]} 42. Rcf1 {[%clk 0:00:07]}  Qe7 {[%clk 0:01:28]} 43. Bg2 {[%clk 0:00:04]}  c3 {[%clk 0:01:26]} 44. Rc1 {[%clk 0:00:04]}  d4 {[%clk 0:01:26]} 45. Rf4 {[%clk 0:00:04]}  Qd6 {[%clk 0:01:23]} 46. Rd1 {[%clk 0:00:03]}  d3 {[%clk 0:01:22]} 0-1


[Site "https://www.chess.com"]

[Event "Titled Tuesday Blitz April 11 Late 2023"]
[White "Mendonca, Leon Luke"]
[Black "Cori T., Deysi"]
[WhiteFideId "35028561"]
[BlackFideId "3801934"]
[WhiteElo "2464"]
[BlackElo "2292"]
[Result "1-0"]
[Round "07"]
[TimeControl "180+2"]
[Date "2023.04.11"]
[WhiteClock "0:01:11"]
[BlackClock "0:01:14"]

1. e4 {[%clk 0:02:56]}  e6 {[%clk 0:03:00]} 2. Nc3 {[%clk 0:02:47]}  d5 {[%clk 0:03:00]} 3. d3 {[%clk 0:02:45]}  Nf6 {[%clk 0:02:58]} 4. Qe2 {[%clk 0:02:44]}  dxe4 {[%clk 0:02:48]} 5. dxe4 {[%clk 0:02:41]}  e5 {[%clk 0:02:48]} 6. Bd2 {[%clk 0:02:36]}  Nc6 {[%clk 0:02:48]} 7. O-O-O {[%clk 0:02:34]}  Nd4 {[%clk 0:02:48]} 8. Qd3 {[%clk 0:02:28]}  Be6 {[%clk 0:02:45]} 9. f4 {[%clk 0:02:25]}  Bd6 {[%clk 0:02:38]} 10. f5 {[%clk 0:02:05]}  Bd7 {[%clk 0:02:36]} 11. Nge2 {[%clk 0:02:02]}  c5 {[%clk 0:02:35]} 12. Bg5 {[%clk 0:01:58]}  Qa5 {[%clk 0:02:23]} 13. Bxf6 {[%clk 0:01:52]}  gxf6 {[%clk 0:02:24]} 14. Kb1 {[%clk 0:01:52]}  Bc6 {[%clk 0:02:00]} 15. Ng3 {[%clk 0:01:52]}  b5 {[%clk 0:01:59]} 16. Nh5 {[%clk 0:01:31]}  Ke7 {[%clk 0:01:58]} 17. Qg3 {[%clk 0:01:29]}  Rag8 {[%clk 0:01:44]} 18. Qh4 {[%clk 0:01:28]}  Rg5 {[%clk 0:01:44]} 19. Nxf6 {[%clk 0:01:21]}  Kxf6 {[%clk 0:01:41]} 20. Qh6+ {[%clk 0:01:21]}  Rg6 {[%clk 0:01:38]} 21. fxg6 {[%clk 0:01:20]}  fxg6 {[%clk 0:01:38]} 22. Be2 {[%clk 0:01:13]}  Bf8 {[%clk 0:01:17]} 23. Rhf1+ {[%clk 0:01:12]}  Ke7 {[%clk 0:01:14]} 24. Qg5+ {[%clk 0:01:11]} 1-0


[Site "https://www.chess.com"]

[Event "Titled Tuesday Blitz April 11 Late 2023"]
[White "Erzhanov, Arman"]
[Black "Riehle, Marco"]
[WhiteFideId "4138821"]
[BlackFideId "12904392"]
[WhiteElo "2138"]
[BlackElo "2462"]
[Result "0-1"]
[Round "07"]
[TimeControl "180+2"]
[Date "2023.04.11"]
[WhiteClock "0:00:15"]
[BlackClock "0:00:41"]

1. e4 {[%clk 0:02:52]}  Nc6 {[%clk 0:03:00]} 2. Nf3 {[%clk 0:02:52]}  e5 {[%clk 0:02:59]} 3. Bb5 {[%clk 0:02:51]}  Nf6 {[%clk 0:02:57]} 4. O-O {[%clk 0:02:50]}  Nxe4 {[%clk 0:02:54]} 5. Re1 {[%clk 0:02:51]}  Nd6 {[%clk 0:02:53]} 6. Nxe5 {[%clk 0:02:51]}  Nxe5 {[%clk 0:02:53]} 7. Rxe5+ {[%clk 0:02:51]}  Be7 {[%clk 0:02:54]} 8. Bf1 {[%clk 0:02:51]}  O-O {[%clk 0:02:55]} 9. d4 {[%clk 0:02:52]}  Bf6 {[%clk 0:02:54]} 10. Re1 {[%clk 0:02:52]}  b5 {[%clk 0:02:54]} 11. c3 {[%clk 0:02:52]}  Bb7 {[%clk 0:02:52]} 12. Bd3 {[%clk 0:02:50]}  Re8 {[%clk 0:02:49]} 13. Bf4 {[%clk 0:02:50]}  a6 {[%clk 0:02:43]} 14. Nd2 {[%clk 0:02:49]}  Re6 {[%clk 0:02:34]} 15. Nb3 {[%clk 0:02:36]}  Rxe1+ {[%clk 0:02:32]} 16. Qxe1 {[%clk 0:02:35]}  Nc4 {[%clk 0:02:26]} 17. Nc5 {[%clk 0:02:33]}  Nxb2 {[%clk 0:02:14]} 18. Bxh7+ {[%clk 0:02:24]}  Kxh7 {[%clk 0:02:13]} 19. Nxb7 {[%clk 0:02:25]}  Qc8 {[%clk 0:02:06]} 20. Na5 {[%clk 0:02:15]}  Kg8 {[%clk 0:02:00]} 21. Qe4 {[%clk 0:02:03]}  Qe8 {[%clk 0:01:54]} 22. Qc2 {[%clk 0:01:52]}  Na4 {[%clk 0:01:54]} 23. Qd2 {[%clk 0:01:50]}  Qe6 {[%clk 0:01:50]} 24. Re1 {[%clk 0:01:45]}  Qd5 {[%clk 0:01:44]} 25. h3 {[%clk 0:01:21]}  d6 {[%clk 0:01:42]} 26. Be3 {[%clk 0:01:03]}  c5 {[%clk 0:01:38]} 27. Rd1 {[%clk 0:00:56]}  c4 {[%clk 0:01:34]} 28. Bf4 {[%clk 0:00:45]}  Bd8 {[%clk 0:01:32]} 29. Nb7 {[%clk 0:00:35]}  Qxb7 {[%clk 0:01:31]} 30. Bxd6 {[%clk 0:00:36]}  Ba5 {[%clk 0:01:23]} 31. Qg5 {[%clk 0:00:36]}  Nxc3 {[%clk 0:01:17]} 32. Re1 {[%clk 0:00:36]}  Ne4 {[%clk 0:01:15]} 33. Rxe4 {[%clk 0:00:27]}  Qxe4 {[%clk 0:01:16]} 34. Be5 {[%clk 0:00:27]}  Qg6 {[%clk 0:01:11]} 35. Qe7 {[%clk 0:00:27]}  c3 {[%clk 0:01:08]} 36. Qc5 {[%clk 0:00:23]}  c2 {[%clk 0:01:04]} 37. d5 {[%clk 0:00:23]}  Bd2 {[%clk 0:01:01]} 38. Bb2 {[%clk 0:00:22]}  c1=Q+ {[%clk 0:00:53]} 39. Bxc1 {[%clk 0:00:22]}  Qb1 {[%clk 0:00:53]} 40. Kh2 {[%clk 0:00:22]}  Qxc1 {[%clk 0:00:52]} 41. Qd4 {[%clk 0:00:21]}  Rd8 {[%clk 0:00:46]} 42. d6 {[%clk 0:00:21]}  Rxd6 {[%clk 0:00:44]} 43. Qe4 {[%clk 0:00:17]}  Rd8 {[%clk 0:00:42]} 44. Qe7 {[%clk 0:00:15]}  Bg5 {[%clk 0:00:41]} 0-1


[Site "https://www.chess.com"]

[Event "Titled Tuesday Blitz April 11 Late 2023"]
[White "Hambleton, Aman"]
[Black "Chos, Alexey"]
[WhiteFideId "2606577"]
[BlackFideId "14117762"]
[WhiteElo "2511"]
[BlackElo "2234"]
[Result "1/2-1/2"]
[Round "07"]
[TimeControl "180+2"]
[Date "2023.04.11"]
[WhiteClock "0:00:02"]
[BlackClock "0:00:03"]

1. d4 {[%clk 0:03:00]}  Nf6 {[%clk 0:02:58]} 2. Bf4 {[%clk 0:03:00]}  g6 {[%clk 0:02:57]} 3. Nc3 {[%clk 0:03:00]}  d5 {[%clk 0:02:57]} 4. e3 {[%clk 0:03:00]}  Bg7 {[%clk 0:02:57]} 5. h4 {[%clk 0:03:00]}  h6 {[%clk 0:02:54]} 6. Nf3 {[%clk 0:03:00]}  O-O {[%clk 0:02:54]} 7. Ne5 {[%clk 0:02:49]}  c5 {[%clk 0:02:52]} 8. Qd2 {[%clk 0:01:48]}  Nc6 {[%clk 0:02:50]} 9. Be2 {[%clk 0:01:43]}  cxd4 {[%clk 0:02:39]} 10. exd4 {[%clk 0:01:43]}  Kh7 {[%clk 0:02:37]} 11. O-O-O {[%clk 0:01:29]}  Nxe5 {[%clk 0:02:19]} 12. dxe5 {[%clk 0:01:22]}  Ng4 {[%clk 0:02:19]} 13. Bxg4 {[%clk 0:00:15]}  Bxg4 {[%clk 0:02:20]} 14. f3 {[%clk 0:00:14]}  Be6 {[%clk 0:02:17]} 15. Ne2 {[%clk 0:00:05]}  f6 {[%clk 0:02:12]} 16. Nd4 {[%clk 0:00:04]}  Bg8 {[%clk 0:02:08]} 17. Rhe1 {[%clk 0:00:03]}  e6 {[%clk 0:02:06]} 18. exf6 {[%clk 0:00:02]}  Qxf6 {[%clk 0:01:59]} 19. Be5 {[%clk 0:00:02]}  Qe7 {[%clk 0:01:54]} 20. Bxg7 {[%clk 0:00:02]}  Kxg7 {[%clk 0:01:55]} 21. g3 {[%clk 0:00:02]}  e5 {[%clk 0:01:48]} 22. f4 {[%clk 0:00:02]}  e4 {[%clk 0:01:48]} 23. Qc3 {[%clk 0:00:02]}  Kh7 {[%clk 0:01:48]} 24. Ne2 {[%clk 0:00:02]}  Rac8 {[%clk 0:01:47]} 25. Qe3 {[%clk 0:00:03]}  Be6 {[%clk 0:01:43]} 26. Nd4 {[%clk 0:00:03]}  Bg4 {[%clk 0:01:41]} 27. Rd3 {[%clk 0:00:03]}  Qb4 {[%clk 0:01:37]} 28. Rb3 {[%clk 0:00:02]}  Qe7 {[%clk 0:01:34]} 29. Kb1 {[%clk 0:00:01]}  a6 {[%clk 0:01:31]} 30. a3 {[%clk 0:00:01]}  b5 {[%clk 0:01:26]} 31. Rc3 {[%clk 0:00:02]}  Qd6 {[%clk 0:01:22]} 32. Ka2 {[%clk 0:00:02]}  Bd7 {[%clk 0:01:14]} 33. Qd2 {[%clk 0:00:02]}  Rxc3 {[%clk 0:01:13]} 34. Qxc3 {[%clk 0:00:02]}  Rc8 {[%clk 0:01:14]} 35. Qb4 {[%clk 0:00:03]}  Qf6 {[%clk 0:01:06]} 36. c3 {[%clk 0:00:03]}  Qf8 {[%clk 0:00:56]} 37. Qxf8 {[%clk 0:00:03]}  Rxf8 {[%clk 0:00:57]} 38. Kb3 {[%clk 0:00:03]}  a5 {[%clk 0:00:52]} 39. Kc2 {[%clk 0:00:03]}  g5 {[%clk 0:00:48]} 40. hxg5 {[%clk 0:00:03]}  hxg5 {[%clk 0:00:49]} 41. Rf1 {[%clk 0:00:02]}  gxf4 {[%clk 0:00:46]} 42. gxf4 {[%clk 0:00:03]}  Kg6 {[%clk 0:00:46]} 43. Kd2 {[%clk 0:00:03]}  Rh8 {[%clk 0:00:42]} 44. Rg1+ {[%clk 0:00:02]}  Kf6 {[%clk 0:00:42]} 45. Rg2 {[%clk 0:00:03]}  Rh4 {[%clk 0:00:40]} 46. Rf2 {[%clk 0:00:03]}  Rh3 {[%clk 0:00:38]} 47. Nc2 {[%clk 0:00:03]}  Rd3+ {[%clk 0:00:37]} 48. Kc1 {[%clk 0:00:04]}  Bg4 {[%clk 0:00:33]} 49. Rd2 {[%clk 0:00:04]}  Rf3 {[%clk 0:00:27]} 50. Rg2 {[%clk 0:00:03]}  Rxf4 {[%clk 0:00:17]} 51. Ne3 {[%clk 0:00:03]}  Be6 {[%clk 0:00:17]} 52. Kd2 {[%clk 0:00:03]}  Rf3 {[%clk 0:00:17]} 53. Rh2 {[%clk 0:00:02]}  Bf7 {[%clk 0:00:15]} 54. Ng4+ {[%clk 0:00:02]}  Kg5 {[%clk 0:00:13]} 55. Ne3 {[%clk 0:00:03]}  Be6 {[%clk 0:00:11]} 56. b4 {[%clk 0:00:03]}  a4 {[%clk 0:00:11]} 57. Ke2 {[%clk 0:00:02]}  Kf4 {[%clk 0:00:10]} 58. Rh4+ {[%clk 0:00:02]}  Ke5 {[%clk 0:00:10]} 59. Rh5+ {[%clk 0:00:02]}  Kd6 {[%clk 0:00:11]} 60. Rh6 {[%clk 0:00:02]}  Rh3 {[%clk 0:00:10]} 61. Rxh3 {[%clk 0:00:02]}  Bxh3 {[%clk 0:00:11]} 62. Nc2 {[%clk 0:00:02]}  Bd7 {[%clk 0:00:10]} 63. Ke3 {[%clk 0:00:03]}  Ke5 {[%clk 0:00:10]} 64. Nd4 {[%clk 0:00:03]}  Be8 {[%clk 0:00:10]} 65. Ne2 {[%clk 0:00:03]}  Bd7 {[%clk 0:00:09]} 66. Nf4 {[%clk 0:00:03]}  Bf5 {[%clk 0:00:04]} 67. Ng2 {[%clk 0:00:03]}  Bd7 {[%clk 0:00:05]} 68. Nf4 {[%clk 0:00:03]}  Bf5 {[%clk 0:00:05]} 69. Nh5 {[%clk 0:00:03]}  Bg6 {[%clk 0:00:04]} 70. Ng3 {[%clk 0:00:04]}  Bf5 {[%clk 0:00:04]} 71. Nf1 {[%clk 0:00:01]}  Bd7 {[%clk 0:00:03]} 72. Nd2 {[%clk 0:00:01]}  Bf5 {[%clk 0:00:03]} 73. Nf1 {[%clk 0:00:02]}  Be6 {[%clk 0:00:03]} 74. Ng3 {[%clk 0:00:02]}  Bd7 {[%clk 0:00:04]} 75. Ne2 {[%clk 0:00:02]}  Bf5 {[%clk 0:00:04]} 76. Nd4 {[%clk 0:00:03]}  Bd7 {[%clk 0:00:04]} 77. Nc2 {[%clk 0:00:03]}  Bf5 {[%clk 0:00:05]} 78. Ne1 {[%clk 0:00:02]}  Bd7 {[%clk 0:00:05]} 79. Ng2 {[%clk 0:00:02]}  Bf5 {[%clk 0:00:05]} 80. Nf4 {[%clk 0:00:02]}  Bd7 {[%clk 0:00:06]} 81. Ng6+ {[%clk 0:00:03]}  Kf6 {[%clk 0:00:06]} 82. Nf4 {[%clk 0:00:01]}  Ke5 {[%clk 0:00:06]} 83. Ng6+ {[%clk 0:00:02]}  Kf6 {[%clk 0:00:07]} 84. Nh4 {[%clk 0:00:02]}  Ke5 {[%clk 0:00:03]} 85. Ng6+ {[%clk 0:00:02]} 1/2-1/2


[Site "https://www.chess.com"]

[Event "Titled Tuesday Blitz April 11 Late 2023"]
[White "Golubev, Mikhail"]
[Black "Bilych, Olexiy"]
[WhiteFideId "14100983"]
[BlackFideId "14156504"]
[WhiteElo "2374"]
[BlackElo "2320"]
[Result "1-0"]
[Round "07"]
[TimeControl "180+2"]
[Date "2023.04.11"]
[WhiteClock "0:00:10"]
[BlackClock "0:00:02"]

1. e4 {[%clk 0:02:54]}  c5 {[%clk 0:03:00]} 2. Nf3 {[%clk 0:02:54]}  d6 {[%clk 0:03:00]} 3. d4 {[%clk 0:02:54]}  cxd4 {[%clk 0:03:01]} 4. Nxd4 {[%clk 0:02:54]}  Nf6 {[%clk 0:03:02]} 5. Nc3 {[%clk 0:02:55]}  a6 {[%clk 0:03:03]} 6. Bc4 {[%clk 0:02:54]}  e6 {[%clk 0:03:03]} 7. Bb3 {[%clk 0:02:53]}  b5 {[%clk 0:03:03]} 8. O-O {[%clk 0:02:52]}  Be7 {[%clk 0:03:04]} 9. Qf3 {[%clk 0:02:51]}  Qb6 {[%clk 0:03:04]} 10. Be3 {[%clk 0:02:50]}  Qb7 {[%clk 0:03:04]} 11. Qg3 {[%clk 0:02:48]}  O-O {[%clk 0:03:05]} 12. Bh6 {[%clk 0:02:47]}  Ne8 {[%clk 0:03:05]} 13. Rad1 {[%clk 0:02:47]}  Bd7 {[%clk 0:02:49]} 14. f4 {[%clk 0:02:46]}  Nc6 {[%clk 0:02:38]} 15. f5 {[%clk 0:02:46]}  Nxd4 {[%clk 0:02:37]} 16. Rxd4 {[%clk 0:02:46]}  Bf6 {[%clk 0:02:26]} 17. Rd2 {[%clk 0:02:45]}  b4 {[%clk 0:02:23]} 18. fxe6 {[%clk 0:02:34]}  Bxe6 {[%clk 0:01:30]} 19. Nd5 {[%clk 0:02:25]}  Be5 {[%clk 0:01:25]} 20. Bf4 {[%clk 0:02:09]}  Bxb2 {[%clk 0:00:46]} 21. Rb1 {[%clk 0:02:09]}  Be5 {[%clk 0:00:38]} 22. Bxe5 {[%clk 0:02:03]}  dxe5 {[%clk 0:00:39]} 23. Qxe5 {[%clk 0:02:03]}  Rc8 {[%clk 0:00:36]} 24. Kh1 {[%clk 0:01:52]}  h6 {[%clk 0:00:34]} 25. Rf1 {[%clk 0:01:44]}  Kh7 {[%clk 0:00:31]} 26. Nf4 {[%clk 0:01:33]}  Bxb3 {[%clk 0:00:30]} 27. axb3 {[%clk 0:01:25]}  Qb5 {[%clk 0:00:28]} 28. Qxb5 {[%clk 0:01:18]}  axb5 {[%clk 0:00:29]} 29. Nd5 {[%clk 0:01:17]}  Nd6 {[%clk 0:00:28]} 30. Re1 {[%clk 0:00:53]}  Rfe8 {[%clk 0:00:24]} 31. Rde2 {[%clk 0:00:50]}  Re5 {[%clk 0:00:19]} 32. Nxb4 {[%clk 0:00:46]}  Rce8 {[%clk 0:00:18]} 33. Nc6 {[%clk 0:00:38]}  Rxe4 {[%clk 0:00:18]} 34. Rxe4 {[%clk 0:00:38]}  Nxe4 {[%clk 0:00:18]} 35. Kg1 {[%clk 0:00:36]}  Rc8 {[%clk 0:00:08]} 36. Ne7 {[%clk 0:00:36]}  Rxc2 {[%clk 0:00:06]} 37. Rxe4 {[%clk 0:00:36]}  Rc1+ {[%clk 0:00:06]} 38. Kf2 {[%clk 0:00:35]}  Rc2+ {[%clk 0:00:06]} 39. Kf3 {[%clk 0:00:33]}  Rc3+ {[%clk 0:00:04]} 40. Re3 {[%clk 0:00:33]}  Rc5 {[%clk 0:00:05]} 41. Ke4 {[%clk 0:00:32]}  g6 {[%clk 0:00:03]} 42. Kd4 {[%clk 0:00:30]}  Rc2 {[%clk 0:00:03]} 43. Rg3 {[%clk 0:00:27]}  h5 {[%clk 0:00:03]} 44. h4 {[%clk 0:00:24]}  Kg7 {[%clk 0:00:02]} 45. Nd5 {[%clk 0:00:24]}  Rd2+ {[%clk 0:00:02]} 46. Kc5 {[%clk 0:00:22]}  f5 {[%clk 0:00:02]} 47. b4 {[%clk 0:00:17]}  Rc2+ {[%clk 0:00:01]} 48. Kxb5 {[%clk 0:00:13]}  Kf7 {[%clk 0:00:02]} 49. Nb6 {[%clk 0:00:13]}  Re2 {[%clk 0:00:02]} 50. Nc4 {[%clk 0:00:12]}  Re4 {[%clk 0:00:02]} 51. Nd6+ {[%clk 0:00:10]} 1-0


[Site "https://www.chess.com"]

[Event "Titled Tuesday Blitz April 11 Late 2023"]
[White "Martinez Ramirez, Lennis"]
[Black "Vivas Zamora, Fabian Ernesto"]
[WhiteFideId "3509079"]
[BlackFideId "3902480"]
[WhiteElo "2410"]
[BlackElo "2262"]
[Result "1-0"]
[Round "07"]
[TimeControl "180+2"]
[Date "2023.04.11"]
[WhiteClock "0:02:02"]
[BlackClock "0:00:01"]

1. c4 {[%clk 0:03:00]}  Nf6 {[%clk 0:02:51]} 2. d4 {[%clk 0:02:59]}  g6 {[%clk 0:02:51]} 3. Nc3 {[%clk 0:02:58]}  d5 {[%clk 0:02:51]} 4. Nf3 {[%clk 0:02:56]}  Bg7 {[%clk 0:02:51]} 5. cxd5 {[%clk 0:02:54]}  Nxd5 {[%clk 0:02:52]} 6. Bd2 {[%clk 0:02:54]}  c5 {[%clk 0:02:48]} 7. e4 {[%clk 0:02:52]}  Nxc3 {[%clk 0:02:47]} 8. Bxc3 {[%clk 0:02:53]}  cxd4 {[%clk 0:02:46]} 9. Bxd4 {[%clk 0:02:54]}  Qa5+ {[%clk 0:02:41]} 10. Qd2 {[%clk 0:02:52]}  Qxd2+ {[%clk 0:02:41]} 11. Kxd2 {[%clk 0:02:53]}  O-O {[%clk 0:02:12]} 12. Bxg7 {[%clk 0:02:52]}  Kxg7 {[%clk 0:02:13]} 13. Bb5 {[%clk 0:02:51]}  Rd8+ {[%clk 0:02:11]} 14. Ke3 {[%clk 0:02:50]}  a6 {[%clk 0:02:11]} 15. Ba4 {[%clk 0:02:50]}  b5 {[%clk 0:01:52]} 16. Bb3 {[%clk 0:02:49]}  Bb7 {[%clk 0:01:52]} 17. Rhd1 {[%clk 0:02:49]}  Nc6 {[%clk 0:01:47]} 18. Rxd8 {[%clk 0:02:47]}  Rxd8 {[%clk 0:01:47]} 19. Bd5 {[%clk 0:02:47]}  Nb4 {[%clk 0:01:13]} 20. Bb3 {[%clk 0:02:25]}  Rd3+ {[%clk 0:01:07]} 21. Kf4 {[%clk 0:02:25]}  f6 {[%clk 0:01:02]} 22. Rc1 {[%clk 0:02:20]}  Rxb3 {[%clk 0:00:32]} 23. Rc7 {[%clk 0:02:13]}  g5+ {[%clk 0:00:16]} 24. Kf5 {[%clk 0:02:09]}  Kf7 {[%clk 0:00:02]} 25. axb3 {[%clk 0:02:05]}  Bc6 {[%clk 0:00:02]} 26. Nd4 {[%clk 0:02:03]}  h5 {[%clk 0:00:01]} 27. Nxc6 {[%clk 0:02:02]} 1-0


[Site "https://www.chess.com"]